bitfinex-derivatives/quotes_ETHF0:USTF0_20241129
["timestamp","ask_amount","ask_price","bid_price","bid_amount"]
[1732865019464,0.28231,3541.6,3541.1,40.8]
[1732865019670,5.37832123,3541.7,3541.1,40.8]
[1732865019873,0.28234,3541.3,3541.1,40.8]
[1732865020267,3.2078,3541.7,3541.1,40.8]
[1732865020268,5.37832123,3541.7,3541.1,40.8]
[1732865020673,0.28234,3541.3,3541.1,40.8]
[1732865020875,5.37832123,3541.7,3541.1,40.8]
[1732865021168,0.28234,3541.2,3541.1,40.8]
[1732865022069,5.37832123,3541.7,3541.1,40.8]
[1732865022275,0.28234,3541.3,3541.1,40.8]
[1732865022572,2.17052123,3541.6,3541.1,40.8]
[1732865022871,0.28234,3541.2,3541.1,40.8]
[1732865023865,3.49014,3541.2,3541.1,40.8]
[1732865024979,6.89299964,3541.2,3540.5,1.4777]
[1732865025178,0.28239,3540.6,3540.5,1.4777]
[1732865025579,0.28239,3540.6,3540.5,42.2777]
[1732865026375,2.17426751,3540.8,3540.5,42.2777]
[1732865026582,2.17426751,3541.0,3540.5,42.2777]
[1732865026783,0.28239,3540.6,3540.5,42.2777]
[1732865027379,2.17426751,3540.9,3540.5,42.2777]
[1732865027579,4.34104247,3541.3,3540.6,3.2078]
[1732865027580,2.17426751,3541.2,3540.6,3.2078]
[1732865027776,2.17426751,3541.2,3540.6,3.49019]
[1732865027777,0.28236,3541.0,3540.6,3.49019]
[1732865028081,2.17426751,3541.2,3540.6,3.2078]
[1732865028284,0.28237,3540.9,3540.6,3.2078]
[1732865029174,3.26141965,3541.2,3540.6,3.2078]
[1732865029175,2.17426751,3541.0,3540.6,3.2078]
[1732865029381,0.28238,3540.7,3540.6,3.2078]
[1732865029879,0.28238,3540.8,3540.6,3.2078]
[1732865030379,0.28236,3541.0,3540.7,0.28238]
[1732865030579,2.17426751,3541.3,3540.6,10.96767651]
[1732865030778,2.17426751,3541.3,3541.1,0.28235]
[1732865030779,0.28234,3541.3,3541.1,0.28235]
[1732865030973,0.28234,3541.3,3541.2,1.6071]
[1732865031177,0.28234,3541.3,3541.2,42.4071]
[1732865031879,2.17426751,3541.4,3541.2,42.4071]
[1732865032276,3.26141965,3541.6,3541.2,42.4071]
[1732865032277,2.17426751,3541.5,3541.2,42.4071]
[1732865032577,2.45658751,3541.6,3541.3,1.88103]
[1732865032777,2.17426751,3541.6,3541.2,42.4071]
[1732865032980,2.45659751,3541.4,3541.2,42.4071]
[1732865033183,2.17426751,3541.4,3541.2,42.4071]
[1732865033485,4.34104247,3541.7,3541.2,42.4071]
[1732865033486,2.17426751,3541.6,3541.2,42.4071]
[1732865033780,0.28233,3541.3,3541.2,42.4071]
[1732865034277,2.45659751,3541.3,3541.2,42.4071]
[1732865034480,0.28237,3540.9,3540.7,3.1188]
[1732865034786,0.28236,3541.0,3540.7,3.1188]
[1732865034986,0.28236,3541.0,3540.8,40.8]
[1732865035284,0.28236,3541.1,3540.8,40.8]
[1732865035482,2.17426751,3541.3,3540.8,40.8]
[1732865035686,2.17426751,3541.3,3541.2,0.28234]
[1732865035884,2.17426751,3541.5,3541.4,0.28233]
[1732865036180,2.17426751,3541.6,3541.2,1.6467]
[1732865036384,2.17426751,3541.6,3541.4,0.28232]
[1732865036580,2.45657751,3541.6,3541.5,40.8]
[1732865036980,2.17426751,3541.6,3541.5,40.8]
[1732865037177,2.17426751,3541.7,3541.5,41.08232]
[1732865037379,2.45656751,3541.7,3541.6,1.577]
[1732865037577,2.17426751,3541.8,3541.6,4.7848]
[1732865037778,2.45654751,3542.0,3541.7,0.2823]
[1732865037984,2.45654751,3542.0,3541.6,6.4401]
[1732865037985,0.2823,3541.8,3541.6,6.72241]
[1732865038382,2.45656751,3541.8,3541.7,40.8]
[1732865038587,2.17426751,3541.8,3541.7,40.8]
[1732865038780,2.45655751,3541.9,3541.7,40.8]
[1732865039181,2.17426751,3541.9,3541.7,40.8]
[1732865039389,2.17426751,3542.0,3541.9,0.28229]
[1732865039682,3.2078,3542.1,3542.0,0.28228]
[1732865040075,2.17426751,3542.2,3542.1,0.28227]
[1732865040483,2.17426751,3542.3,3542.2,0.28226]
[1732865040885,2.17426751,3542.4,3542.3,0.28226]
[1732865041080,0.28223,3542.6,3542.3,0.28226]
[1732865041081,3.26141965,3542.6,3542.5,0.28224]
[1732865041284,5.42799285,3543.2,3542.5,3.2078]
[1732865041578,3.26141965,3543.6,3542.9,3.2078]
[1732865041785,0.28215,3543.6,3543.2,0.28218]
[1732865042087,3.26141965,3543.7,3542.9,3.2078]
[1732865042287,0.2822,3543.0,3542.9,3.2078]
[1732865042478,2.17735288,3543.4,3542.9,3.2078]
[1732865042680,0.28216,3543.5,3543.1,0.28218]
[1732865042879,0.28216,3543.5,3543.1,0.28219]
[1732865043091,5.43877253,3543.8,3543.2,0.28218]
[1732865043281,2.17735288,3543.8,3543.2,0.28218]
[1732865043587,0.28214,3543.8,3543.4,0.28216]
[1732865043783,3.2078,3543.9,3542.9,3.2078]
[1732865043978,0.28216,3543.5,3543.0,0.2822]
[1732865044182,3.2078,3543.9,3542.9,3.2078]
[1732865045090,0.28218,3543.2,3542.9,3.2078]
[1732865045387,0.28217,3543.4,3542.9,3.49001]
[1732865045577,3.2078,3543.9,3542.9,3.2078]
[1732865045980,0.28219,3543.1,3542.9,3.2078]
[1732865046190,3.2078,3543.4,3542.9,3.2078]
[1732865046381,3.2078,3543.8,3542.9,3.2078]
[1732865046688,3.2078,3543.8,3542.9,3.49001]
[1732865046883,3.2078,3543.8,3542.9,3.2078]
[1732865047583,0.28218,3543.2,3542.9,3.2078]
[1732865047783,0.28218,3543.3,3543.0,40.8]
[1732865047978,3.2078,3543.8,3543.0,40.8]
[1732865047979,0.28218,3543.2,3543.0,40.8]
[1732865048178,0.28219,3543.1,3543.0,40.8]
[1732865048387,0.28221,3542.9,3542.4,3.49005]
[1732865048585,0.28224,3542.6,3542.1,3.32687]
[1732865048784,1.5721,3543.3,3542.2,40.8]
[1732865048984,1.5721,3543.3,3541.6,2.75363984]
[1732865048985,5.96143984,3543.0,3541.6,3.2078]
[1732865049195,3.2078,3542.6,3541.6,5.96143984]
[1732865049484,3.49004,3542.6,3542.1,0.28227]
[1732865049689,3.49004,3542.6,3541.7,40.8]
[1732865049690,3.2078,3543.2,3542.0,5.96143984]
[1732865049879,4.34104247,3543.6,3542.4,5.96143984]
[1732865050085,0.28218,3543.3,3542.8,0.28221]
[1732865050280,0.28217,3543.4,3542.9,0.2822]
[1732865050683,1.5781,3543.7,3542.8,0.28221]
[1732865050885,1.5781,3543.7,3542.7,0.28222]
[1732865051185,0.28218,3543.3,3542.5,3.1195]
[1732865051494,3.2078,3543.4,3542.5,3.1195]
[1732865051784,1.5781,3543.7,3542.8,0.28221]
[1732865051785,0.28219,3543.2,3542.8,0.28221]
[1732865051988,1.5781,3543.7,3542.8,0.28221]
[1732865052185,0.28219,3543.1,3542.5,3.1195]
[1732865052487,0.28219,3543.2,3542.8,0.28221]
[1732865052690,0.28219,3543.1,3542.8,0.28221]
[1732865052990,3.2078,3543.4,3542.5,3.1195]
[1732865053191,3.2078,3542.9,3541.8,3.2078]
[1732865053387,0.28226,3542.3,3541.9,0.28228]
[1732865053687,0.28226,3542.3,3541.8,3.2078]
[1732865053688,0.28227,3542.1,3541.8,3.49009]
[1732865053888,1.5511,3542.8,3541.8,3.2078]
[1732865054288,0.28222,3542.7,3542.0,0.28228]
[1732865054486,0.28225,3542.4,3542.0,0.28228]
[1732865055287,1.5511,3542.8,3541.8,3.2078]
[1732865055491,3.26141965,3543.5,3542.2,3.2078]
[1732865055797,0.28221,3542.9,3542.5,0.28223]
[1732865055989,0.28221,3542.9,3542.8,40.8]
[1732865058286,0.28218,3543.2,3542.8,40.8]
[1732865058497,0.2822,3543.0,3542.8,40.8]
[1732865058691,0.28221,3542.9,3542.8,40.8]
[1732865060688,0.28224,3542.5,3542.2,3.2078]
[1732865061095,0.28224,3542.5,3542.3,40.8]
[1732865061298,3.91326,3543.3,3542.3,40.8]
[1732865061590,0.28225,3542.4,3542.3,40.8]
[1732865062187,3.2078,3543.3,3542.3,49.0078]
[1732865062387,3.2078,3543.3,3542.7,3.2078]
[1732865062595,0.28218,3543.3,3542.9,0.28221]
[1732865062986,3.2078,3543.6,3542.9,0.2822]
[1732865062987,0.28218,3543.4,3542.9,0.2822]
[1732865063196,0.28218,3543.3,3542.9,0.2822]
[1732865063394,3.2078,3543.6,3542.8,1.6464]
[1732865063597,0.28219,3543.1,3542.8,1.6464]
[1732865063788,0.2822,3543.0,3542.8,1.6464]
[1732865064592,0.28221,3542.9,3542.8,1.6464]
[1732865064898,3.2078,3543.2,3542.8,1.6464]
[1732865064899,0.2822,3543.0,3542.8,1.6464]
[1732865065097,3.2078,3543.2,3542.8,1.6464]
[1732865065489,0.2822,3543.1,3542.8,1.6464]
[1732865066197,3.48999,3543.2,3542.8,1.92861]
[1732865066394,3.2078,3543.6,3542.8,1.6464]
[1732865066594,3.2078,3543.6,3542.9,40.8]
[1732865066788,0.28219,3543.1,3542.9,40.8]
[1732865066992,0.2822,3543.1,3542.9,40.8]
[1732865067199,3.2078,3543.6,3542.9,40.8]
[1732865067398,0.28219,3543.2,3542.9,40.8]
[1732865067700,0.28219,3543.2,3542.9,41.08221]
[1732865067892,0.28219,3543.2,3542.9,40.8]
[1732865068698,3.2078,3543.6,3542.9,40.8]
[1732865068898,0.28216,3543.5,3543.1,0.28219]
[1732865069101,3.48995,3543.7,3543.3,0.28217]
[1732865069291,3.2078,3543.7,3543.2,2.17550846]
[1732865069600,3.48995,3543.7,3543.3,0.28217]
[1732865069799,0.28216,3543.6,3543.3,0.28218]
[1732865070101,0.28215,3543.6,3543.2,2.45768846]
[1732865070292,0.28215,3543.6,3543.3,0.28217]
[1732865070492,0.2822,3543.0,3542.9,40.8]
[1732865070697,0.28217,3543.4,3542.9,40.8]
[1732865070896,0.28218,3543.2,3542.9,40.8]
[1732865071100,3.2078,3543.7,3542.9,40.8]
[1732865071306,0.28216,3543.5,3543.1,0.28219]
[1732865071604,0.28217,3543.5,3543.1,0.28219]
[1732865071899,3.2078,3543.7,3543.1,0.28218]
[1732865072212,3.2078,3543.7,3542.9,40.8]
[1732865073200,0.28219,3543.2,3542.9,40.8]
[1732865073499,3.2078,3543.7,3542.9,40.8]
[1732865073898,0.28212,3544.0,3543.6,0.28215]
[1732865074102,0.28212,3544.0,3543.7,1.6254]
[1732865074301,6.46921965,3544.4,3543.7,1.6254]
[1732865074600,6.46921965,3544.4,3543.8,40.8]
[1732865074995,0.28213,3543.9,3543.8,40.8]
[1732865075199,0.28211,3544.2,3543.8,41.08213]
[1732865075895,0.28211,3544.1,3543.8,41.08213]
[1732865076092,0.28213,3543.9,3543.8,40.8]
[1732865076292,3.26141965,3544.5,3543.8,40.8]
[1732865076496,3.26141965,3544.6,3543.8,40.8]
[1732865076691,0.28211,3544.2,3543.8,41.08213]
[1732865076891,3.26141965,3544.7,3543.8,40.8]
[1732865077203,3.26141965,3544.7,3544.0,0.28211]
[1732865077399,3.26141965,3544.7,3543.8,40.8]
[1732865077600,3.2078,3544.8,3544.0,2.17550846]
[1732865077601,3.26141965,3544.8,3544.0,2.17550846]
[1732865077804,3.2078,3544.8,3544.1,0.28211]
[1732865078003,0.28208,3544.6,3544.2,0.2821]
[1732865078301,3.2078,3544.8,3544.1,1.6108]
[1732865078503,4.34104247,3545.1,3544.1,1.6108]
[1732865078504,0.28204,3545.0,3544.6,0.28207]
[1732865078798,6.50501965,3545.2,3544.2,1.6894]
[1732865078992,0.28209,3544.4,3544.2,1.6894]
[1732865079698,6.46921965,3544.9,3544.2,1.6894]
[1732865079699,0.2821,3544.3,3544.2,1.6894]
[1732865080295,3.26141965,3544.8,3544.5,0.28207]
[1732865080500,0.28206,3544.8,3544.7,2.17550846]
[1732865080799,0.28206,3544.8,3544.7,42.97550846]
[1732865082800,6.47061468,3545.0,3544.7,42.97550846]
[1732865083204,3.48984,3545.0,3544.7,42.97550846]
[1732865083398,0.28205,3544.9,3544.7,42.97550846]
[1732865083898,0.28206,3544.8,3544.7,42.97550846]
[1732865084100,3.2078,3545.0,3544.7,42.97550846]
[1732865084300,0.28206,3544.8,3544.7,42.97550846]
[1732865085004,0.28205,3544.9,3544.7,42.97550846]
[1732865085198,3.2078,3545.0,3544.7,42.97550846]
[1732865085799,0.28205,3544.9,3544.7,2.17550846]
[1732865086102,3.2078,3545.0,3544.7,2.17550846]
[1732865086298,3.26281468,3545.5,3544.9,40.8]
[1732865086506,0.28201,3545.5,3545.4,2.17550846]
[1732865086700,3.26281468,3545.7,3545.1,2.17550846]
[1732865086904,0.28202,3545.2,3545.1,2.17550846]
[1732865087100,3.26281468,3545.5,3545.1,42.97550846]
[1732865087302,0.28201,3545.5,3545.4,2.17550846]
[1732865087700,0.28203,3545.1,3545.0,3.72420846]
[1732865087905,0.28203,3545.1,3545.0,44.52420846]
[1732865088105,0.08203,3545.1,3545.0,44.52420846]
[1732865088310,0.28203,3545.1,3545.0,44.52420846]
[1732865089098,6.47061468,3545.7,3545.0,44.52420846]
[1732865089405,0.28203,3545.1,3545.0,44.52420846]
[1732865089705,0.28203,3545.2,3545.0,44.52420846]
[1732865091812,0.28203,3545.1,3545.0,44.52420846]
[1732865092106,3.2078,3545.7,3545.0,44.52420846]
[1732865092502,3.2078,3545.7,3545.0,40.8]
[1732865092707,0.28203,3545.2,3545.0,40.8]
[1732865092898,0.28203,3545.1,3544.8,3.2078]
[1732865093104,3.2078,3545.7,3544.8,3.2078]
[1732865093307,0.28203,3545.2,3544.8,3.2078]
[1732865093613,3.2078,3545.7,3545.4,0.282]
[1732865093806,3.2078,3545.7,3544.8,3.2078]
[1732865093807,0.28197,3546.0,3545.5,5.70230846]
[1732865094109,3.2078,3546.5,3545.6,1.6961]
[1732865094408,3.2078,3546.5,3545.6,4.9039]
[1732865094605,0.28198,3545.8,3545.6,1.6961]
[1732865094808,0.28198,3545.7,3545.6,1.6961]
[1732865095112,3.2078,3546.2,3545.6,1.6961]
[1732865095610,3.9126,3546.6,3545.6,1.6961]
[1732865095915,0.70481,3546.5,3545.6,1.6961]
[1732865096132,0.28198,3545.7,3545.6,1.6961]
[1732865096408,0.28198,3545.7,3545.5,1.5518]
[1732865096409,3.2078,3545.7,3545.5,1.5518]
[1732865096611,0.28199,3545.6,3545.5,1.5518]
[1732865096807,0.28199,3545.6,3545.5,42.3518]
[1732865099915,3.2078,3545.7,3545.5,42.3518]
[1732865100114,3.2078,3546.1,3545.5,42.3518]
[1732865100321,0.28199,3545.6,3545.5,42.3518]
[1732865102219,0.28199,3545.7,3545.5,42.3518]
[1732865102419,0.28199,3545.6,3545.5,42.3518]
[1732865103014,0.28199,3545.6,3545.5,40.8]
[1732865103215,0.28199,3545.6,3543.5,6.91179255]
[1732865103216,5.0,3545.6,3544.1,2.17550846]
[1732865103519,5.0,3545.6,3543.7,2.17550846]
[1732865103520,3.2078,3544.2,3543.7,2.17550846]
[1732865103913,0.28211,3544.2,3543.7,2.45764846]
[1732865104116,0.28209,3544.5,3544.1,2.17550846]
[1732865104318,0.28209,3544.5,3544.4,40.8]
[1732865104514,0.28208,3544.5,3544.4,40.8]
[1732865104722,3.2078,3545.0,3544.4,40.8]
[1732865104922,0.28208,3544.6,3544.4,40.8]
[1732865105122,0.28208,3544.6,3544.5,1.2966]
[1732865105314,0.28207,3544.7,3544.5,1.2966]
[1732865105513,3.2078,3545.0,3544.5,3.47210846]
[1732865105718,3.2078,3545.0,3544.6,2.652]
[1732865105925,3.2078,3545.4,3544.6,2.652]
[1732865106221,0.28206,3544.7,3544.6,2.652]
[1732865106423,3.2078,3545.0,3544.6,2.652]
[1732865106720,0.28206,3544.7,3544.6,2.652]
[1732865107024,0.28206,3544.7,3544.6,43.452]
[1732865107225,0.28205,3544.9,3544.6,43.452]
[1732865107616,0.28205,3545.0,3544.6,43.452]
[1732865107826,0.28204,3545.1,3544.6,43.452]
[1732865108013,0.28204,3545.1,3544.6,43.73407]
[1732865108220,3.2078,3545.4,3544.6,43.73407]
[1732865108419,3.2078,3545.4,3544.6,43.452]
[1732865108619,0.28205,3545.0,3544.6,43.452]
[1732865108816,0.28203,3545.2,3544.6,43.452]
[1732865109019,6.47061468,3545.8,3544.7,0.28206]
[1732865109217,6.47061468,3545.8,3544.6,43.73407]
[1732865109218,3.2078,3545.4,3544.6,43.73407]
[1732865109419,0.28204,3545.1,3544.6,43.73407]
[1732865109919,3.2078,3545.4,3544.7,0.28206]
[1732865110115,0.28203,3545.1,3544.7,0.28206]
[1732865110322,3.2078,3545.4,3544.6,43.452]
[1732865110519,0.28202,3545.3,3544.9,0.28205]
[1732865111024,0.28203,3545.2,3544.8,0.28205]
[1732865111324,0.28203,3545.2,3544.6,43.452]
[1732865111325,3.2078,3545.4,3544.6,43.452]
[1732865111523,3.2078,3545.4,3544.7,0.28206]
[1732865111724,3.2078,3545.4,3544.8,0.28206]
[1732865112023,0.28203,3545.2,3544.8,0.28206]
[1732865112216,3.48981,3545.4,3544.9,2.17550846]
[1732865112418,3.2078,3545.4,3545.1,0.28203]
[1732865112619,3.48981,3545.4,3545.3,40.8]
[1732865118432,6.75262468,3545.4,3545.3,40.8]
[1732865118929,3.48981,3545.4,3545.3,40.8]
[1732865119225,7.17590375,3545.4,3545.3,40.8]
[1732865120217,3.91308907,3545.4,3545.3,40.8]
[1732865120525,7.18072238,3545.4,3545.3,40.8]
[1732865121030,7.18071821,3545.4,3545.3,40.8]
[1732865121227,3.91308544,3545.4,3545.3,40.8]
[1732865121426,3.63107544,3545.4,3545.3,40.8]
[1732865121627,6.89981799,3545.4,3545.3,40.8]
[1732865121927,6.89981799,3545.4,3545.3,42.97550846]
[1732865121928,1.3764,3545.4,3545.3,42.97550846]
[1732865122124,3.26874251,3545.6,3545.3,42.97550846]
[1732865122430,3.55074251,3545.5,3545.4,2.7085]
[1732865122825,5.0556603,3545.5,3545.4,40.8]
[1732865123127,0.28203,3545.1,3545.0,3.2078]
[1732865123327,3.27022263,3545.1,3545.0,3.2078]
[1732865123630,3.55225263,3545.1,3545.0,44.0078]
[1732865124022,3.69350528,3545.1,3545.0,44.0078]
[1732865124224,3.55225263,3545.1,3545.0,44.0078]
[1732865124529,0.70531265,3545.1,3545.0,44.0078]
[1732865126531,3.69498415,3545.1,3545.0,44.0078]
[1732865126828,3.2717015,3545.2,3545.1,0.28203]
[1732865127030,3.2717015,3545.3,3545.1,0.28203]
[1732865127226,3.2717015,3545.2,3545.1,0.28203]
[1732865127733,3.2717015,3545.2,3545.0,44.28984]
[1732865127928,3.2717015,3545.2,3545.0,44.0078]
[1732865128127,3.2717015,3545.3,3545.1,0.28203]
[1732865128327,3.2717015,3545.2,3545.1,0.28203]
[1732865128528,3.2717015,3545.3,3545.0,44.0078]
[1732865128730,3.2717015,3545.3,3545.1,0.28203]
[1732865129233,3.97697326,3545.3,3545.1,0.28203]
[1732865129432,3.2717015,3545.3,3545.1,0.28203]
[1732865129630,3.5537215,3545.3,3545.1,0.28203]
[1732865129825,3.2717015,3545.3,3545.1,0.28203]
[1732865130233,3.97697606,3545.3,3545.1,0.28203]
[1732865130533,3.2717015,3545.2,3545.0,44.0078]
[1732865130727,3.2717015,3545.2,3545.1,0.28203]
[1732865131928,3.2717015,3545.2,3545.0,44.0078]
[1732865132136,0.28203,3545.1,3545.0,44.0078]
[1732865132535,3.9770045,3545.1,3545.0,44.0078]
[1732865132733,0.705303,3545.1,3545.0,44.0078]
[1732865133036,0.28203,3545.1,3545.0,44.0078]
[1732865133224,4.36029684,3545.1,3545.0,44.0078]
[1732865133531,4.36029684,3545.2,3545.0,44.0078]
[1732865134032,4.64232684,3545.2,3545.0,44.0078]
[1732865134232,0.28203,3545.1,3545.0,44.0078]
[1732865134632,4.64232684,3545.1,3545.0,44.0078]
[1732865135434,0.28203,3545.1,3545.0,44.0078]
[1732865136532,0.28203,3545.1,3544.4,3.2078]
[1732865136533,6.1337,3545.1,3544.4,3.2078]
[1732865136837,0.28212,3544.0,3543.8,5.632]
[1732865137030,3.27160621,3544.3,3544.2,0.2821]
[1732865137333,1.43930621,3544.7,3544.6,0.28207]
[1732865137631,4.36214161,3545.5,3545.2,0.28202]
[1732865137831,0.28201,3545.4,3545.3,1.1789]
[1732865138024,4.36214161,3545.5,3545.3,41.9789]
[1732865138229,4.64414161,3545.5,3545.3,41.9789]
[1732865138529,4.36214161,3545.5,3545.3,41.9789]
[1732865138932,0.282,3545.5,3545.3,41.9789]
[1732865139131,4.64414161,3545.5,3545.3,41.9789]
[1732865139335,0.28201,3545.4,3545.3,41.9789]
[1732865139528,4.64414161,3545.5,3545.3,41.9789]
[1732865139726,0.28201,3545.4,3545.3,41.9789]
[1732865139934,4.36214161,3545.5,3545.3,41.9789]
[1732865140129,0.28201,3545.4,3545.3,41.9789]
[1732865140337,4.36214161,3545.5,3545.3,41.9789]
[1732865140539,4.64414161,3545.5,3545.3,41.9789]
[1732865141332,0.28201,3545.4,3545.3,41.9789]
[1732865141526,0.28201,3545.4,3545.3,40.8]
[1732865141733,4.64415161,3545.4,3545.3,40.8]
[1732865142736,4.64590267,3545.4,3545.3,40.8]
[1732865143132,5.4528571,3545.5,3545.3,40.8]
[1732865143329,4.3646217,3545.5,3545.3,40.8]
[1732865143533,4.3646217,3545.6,3545.3,41.08202]
[1732865143936,4.3646217,3545.6,3545.3,40.8]
[1732865144138,0.28201,3545.4,3545.3,40.8]
[1732865144336,4.6466317,3545.4,3545.3,40.8]
[1732865145040,4.3646217,3545.4,3545.3,40.8]
[1732865145342,4.6466317,3545.4,3545.3,40.8]
[1732865146030,4.3646217,3545.4,3545.3,40.8]
[1732865146631,4.3646217,3545.4,3545.3,41.08202]
[1732865146836,4.3646217,3545.4,3545.3,40.8]
[1732865147038,4.3646217,3545.5,3545.3,41.08202]
[1732865147332,4.3646217,3545.5,3545.4,0.28201]
[1732865147641,4.3646217,3545.5,3545.3,41.08201]
[1732865148136,4.3646217,3545.7,3545.3,40.8]
[1732865148341,5.4528571,3545.9,3545.7,0.28198]
[1732865148342,4.3646217,3545.9,3545.7,0.28198]
[1732865148538,4.3646217,3546.0,3545.8,3.4919]
[1732865149236,4.3646217,3546.1,3545.8,3.4919]
[1732865149543,4.6465717,3546.1,3545.8,3.4919]
[1732865150738,4.6465717,3546.2,3545.8,3.77387]
[1732865150937,0.28195,3546.1,3545.8,3.4919]
[1732865151138,4.6465717,3546.1,3545.8,3.4919]
[1732865151741,4.3646217,3546.1,3545.8,3.4919]
[1732865152039,10.86472937,3546.7,3545.8,3.4919]
[1732865152040,4.3646217,3546.4,3545.9,5.38330846]
[1732865152245,4.3646217,3546.5,3546.0,0.28196]
[1732865152545,0.28194,3546.3,3546.1,40.8]
[1732865152935,4.3646217,3546.5,3546.1,40.8]
[1732865153231,4.6465417,3546.6,3546.3,0.28194]
[1732865153437,0.28192,3546.6,3546.3,0.28194]
[1732865153843,0.28192,3546.5,3546.3,0.28194]
[1732865154241,4.3646217,3546.8,3546.4,3.2078]
[1732865154442,4.6465117,3547.0,3546.7,2.45740846]
[1732865154638,0.28189,3547.0,3546.8,4.3107]
[1732865155442,0.28189,3546.9,3546.8,4.3107]
[1732865155642,0.28188,3547.0,3546.8,4.3107]
[1732865155838,0.01447,3547.2,3546.8,4.3107]
[1732865156043,0.28188,3547.1,3546.8,4.3107]
[1732865156248,0.28188,3547.0,3546.8,4.3107]
[1732865156644,0.28188,3547.1,3546.8,4.3107]
[1732865156839,0.01447,3547.2,3546.8,4.3107]
[1732865156840,0.28188,3547.0,3546.8,4.3107]
[1732865157750,0.01447,3547.2,3546.8,4.3107]
[1732865158051,0.28188,3547.1,3546.8,4.3107]
[1732865158551,0.01447,3547.2,3546.8,4.3107]
[1732865159147,0.01447,3547.2,3546.8,3.2078]
[1732865159450,0.28192,3546.6,3546.3,3.2078]
[1732865159644,0.28192,3546.5,3546.3,3.2078]
[1732865160247,8.6401217,3547.1,3546.3,3.2078]
[1732865160646,3.2078,3546.6,3546.1,40.8]
[1732865160849,0.28194,3546.2,3546.1,40.8]
[1732865161851,2.17581121,3546.4,3546.1,40.8]
[1732865162153,2.17581121,3546.7,3546.3,2.17550846]
[1732865162354,2.17581121,3546.7,3546.4,2.1185]
[1732865162355,0.28191,3546.7,3546.4,2.1185]
[1732865163454,2.17581121,3546.9,3546.5,0.28192]
[1732865163656,3.51539121,3547.0,3546.5,1.32612]
[1732865164062,3.51539121,3547.0,3546.6,40.8]
[1732865164356,3.23351121,3547.0,3546.6,40.8]
[1732865164759,0.28189,3546.9,3546.6,40.8]
[1732865165157,3.51539121,3547.0,3546.6,41.08191]
[1732865165358,0.28189,3546.9,3546.6,40.8]
[1732865166461,1.0577,3547.0,3546.6,41.08191]
[1732865166462,1.33959,3547.0,3546.6,41.08191]
[1732865166858,1.33959,3547.0,3546.6,40.8]
[1732865167060,7.62836556,3547.6,3546.6,40.8]
[1732865167061,2.17581121,3547.2,3546.6,40.8]
[1732865167258,0.28188,3547.0,3546.6,40.8]
[1732865167558,0.2819,3546.7,3546.6,40.8]
[1732865170063,2.45771121,3546.7,3546.6,40.8]
[1732865170655,2.17581121,3546.7,3546.6,40.8]
[1732865170858,2.17581121,3547.1,3546.6,40.8]
[1732865171260,0.28189,3546.9,3546.6,40.8]
[1732865171967,0.28189,3547.0,3546.6,40.8]
[1732865172159,2.17581121,3547.2,3546.6,40.8]
[1732865172962,0.28189,3546.9,3546.6,40.8]
[1732865173666,2.45769121,3547.1,3546.6,41.08191]
[1732865173861,2.17581121,3547.1,3546.6,41.08191]
[1732865174066,2.17581121,3547.1,3546.6,40.8]
[1732865174467,0.28189,3546.9,3546.6,40.8]
[1732865174764,2.17581121,3547.1,3546.6,40.8]
[1732865175060,0.28188,3547.1,3546.6,41.08191]
[1732865175264,0.28189,3547.0,3546.6,40.8]
[1732865175468,0.28189,3547.0,3546.6,41.08191]
[1732865176167,2.17581121,3547.2,3546.6,40.8]
[1732865176464,0.28187,3547.1,3546.6,40.8]
[1732865176662,2.17581121,3547.3,3546.6,40.8]
[1732865176861,0.28189,3547.0,3546.6,41.08191]
[1732865177267,0.28188,3547.1,3546.7,0.2819]
[1732865177662,0.28188,3547.0,3546.6,41.08191]
[1732865177965,0.28188,3547.1,3546.7,0.2819]
[1732865178263,2.17581121,3547.3,3546.6,40.8]
[1732865178662,0.28187,3547.1,3546.7,0.2819]
[1732865179166,0.28187,3547.1,3546.8,0.2819]
[1732865179668,2.17581121,3547.4,3546.6,40.8]
[1732865179669,0.28188,3547.0,3546.7,0.2819]
[1732865179865,0.28187,3547.2,3546.9,0.28188]
[1732865180072,0.28188,3547.0,3546.8,0.28189]
[1732865180269,2.17581121,3547.4,3546.9,0.28188]
[1732865180270,0.28187,3547.2,3546.9,0.28188]
[1732865180764,2.17581121,3547.4,3547.1,0.28187]
[1732865180960,0.28186,3547.3,3547.2,1.0595]
[1732865181365,0.28186,3547.3,3547.2,41.8595]
[1732865181565,3.38117802,3548.0,3547.2,41.8595]
[1732865181566,0.28186,3547.4,3547.2,41.8595]
[1732865182271,2.17581121,3547.7,3547.2,41.8595]
[1732865182468,0.28185,3547.4,3547.2,41.8595]
[1732865182666,0.28185,3547.5,3547.2,42.14136]
[1732865182865,0.28185,3547.5,3547.2,41.8595]
[1732865183262,2.17581121,3547.6,3547.2,41.8595]
[1732865183462,0.28186,3547.3,3547.2,41.8595]
[1732865187274,2.17581121,3547.4,3547.2,41.8595]
[1732865187470,2.17581121,3547.6,3547.3,0.28186]
[1732865187667,0.28184,3547.5,3547.2,45.34916]
[1732865187965,2.17581121,3547.6,3547.3,2.0622]
[1732865188366,2.17581121,3547.6,3547.3,2.34405]
[1732865188575,3.2078,3547.7,3547.3,2.0622]
[1732865188770,2.17581121,3547.7,3547.6,5.38330846]
[1732865189078,4.3646217,3548.2,3547.3,2.0622]
[1732865189273,1.0334,3548.0,3547.3,2.0622]
[1732865189476,0.28183,3547.7,3547.6,40.8]